[Event "1st Festival Galdar 2024"]
[Site "?"]
[Date "2024.09.02"]
[Round "1.7"]
[White "Sanchez Montesdeoca, Isaac"]
[Black "Cuenca Jimenez, Jose Fernando"]
[Result "0-1"]
[Annotator "TA"]
[ECO "B30"]
[WhiteElo "1806"]
[BlackElo "2466"]
[PlyCount "66"]
[EventDate "2024.09.02"]
[EventType "swiss"]
[SourceTitle "playchess.com"]
[Source "ChessBase"]
[SourceQuality "1"]
[TimeControl "5400+30"]

{[%evp 9,66,-6,3,-10,-6,-18,0,-34,-45,-47,-49,-48,-45,-115,-79,-69,-70,-71,-70,-79,-83,-69,-72,-117,-78,-125,-136,-91,-3,-115,-67,-154,-153,-160,-146,-202,-193,-212,-212,-189,-167,-133,-30,-23,0,-79,0,0,0,-97,-110,-100,-88,-268,-262,-258,-247,-590,-263]} 1. e4 {[%emt 0:00:04]} c5 {[%emt 0:00:08]} 2. Nf3 {[%emt 0:00:08]} Nc6 {[%emt 0:00:04]} 3. Bc4 {[%emt 0:00:09]} Nf6 {[%emt 0:03:39]} 4. Nc3 {[%emt 0:00:54]} e6 {[%emt 0:00:18]} 5. O-O {[%emt 0:01:52]} d5 {[%emt 0:00:18]} 6. exd5 {[%emt 0:00:11]} exd5 {[%emt 0:00:04]} 7. Re1+ {[%emt 0:00:08]} Be7 {[%emt 0:00:12]} 8. Bf1 {[%emt 0:01:50] The position is equal.} d4 {[%emt 0:02:38]} 9. Ne4 {[%emt 0:00:27]} Nxe4 {[%emt 0:00:24]} 10. Rxe4 {[%emt 0:00:09]} Bf5 {[%emt 0:00:19]} 11. Rf4 {[%emt 0:01:38]} ({Better is} 11. Re1 $15) 11... Bg6 {[%emt 0:02:44]} 12. Bb5 {[%emt 0:02:39]} Bd6 {[%emt 0:08:06]} 13. Rh4 {[%emt 0:02:29]} O-O {[%emt 0:03:51]} 14. Bxc6 {[%emt 0:00:09]} bxc6 {[%emt 0:00:04]} 15. d3 {[%emt 0:00:28]} Qc7 {[%emt 0:00:48]} 16. Ng5 {[%emt 0:03:21][%cal Og5h7]} Qe7 {[%emt 0:04:28]} 17. Bd2 {[%emt 0:09:27]} (17. Nf3 $142) 17... h6 $17 {[%emt 0:01:44]} 18. Nf3 {[%emt 0:09:04]} f5 {[%emt 0:00:35] Black is more active.} ({Black should play} 18... Bf5 $17 19. h3 Rfe8) 19. g3 {[%emt 0:06:59]} (19. c3 $1 $11 {remains equal.}) 19... Bf7 {[%emt 0:12:53]} (19... Qe6 $17 20. Bf4 Be7) 20. c4 {[%emt 0:01:41]} (20. c3 $1 $15) 20... Qf6 {[%emt 0:02:38]} 21. Qc1 {[%emt 0:08:26][%cal Rd2h6]} Rad8 {[%emt 0:01:39]} 22. Qf1 {[%emt 0:09:54]} (22. Kg2 $17) 22... g5 $19 {[%emt 0:01:00]} 23. Rh3 {[%emt 0:00:20]} Be6 {[%emt 0:09:56] Threatens to win with ...f4.} 24. Re1 {[%emt 0:06:35][%cal Of3g5]} f4 {[%emt 0:08:46]} 25. gxf4 {[%emt 0:01:42]} Bxf4 {[%emt 0:05:10]} ({Black should try} 25... gxf4 $17 26. Rh4 Rf7) 26. Bxf4 $11 {[%emt 0:06:51]} gxf4 {[%emt 0:03:49]} (26... Qxf4 $5 27. Rg3 $8 (27. Rxe6 $2 {is the wrong capture.} Qg4+ 28. Rg3 Qxe6 $19) (27. Rxh6 $2 {too greedy.} Bf5 $19) 27... Bf5 $11) 27. Kh1 {[%emt 0:04:18]} Rd7 {[%emt 0:02:06]} (27... Bxh3 $17 28. Qxh3 Rd6 (28... Rfe8 29. Rg1+ Kh8 30. Ng5 $17)) 28. Rh4 {[%emt 0:03:47]} Rg7 $36 {[%emt 0:00:18][%mdl 2048] Black has good play.} 29. Re4 {[%emt 0:00:25]} (29. h3 $11 {keeps the balance.}) 29... Bg4 $17 {[%emt 0:01:37]} 30. Rxg4 {[%emt 0:01:10]} Rxg4 {[%emt 0:00:20]} 31. Ne5 $2 {[%emt 0:00:16] [#]} (31. Qe2 $17 {was called for.}) 31... Rg7 $1 $19 {[%emt 0:00:30] Hoping for ...f3.} 32. Qh3 {[%emt 0:00:30]} Qf5 {[%emt 0:05:50] Prevents Ng4.} 33. Qf1 {[%emt 0:05:25]} (33. Qxf5 {was the crucial defense.} Rxf5 34. Nf3) 33... Re8 {[%emt 0:01:34] Weighted Error Value: White=0.49/Black=0.21 (precise) .  Loses game:     	White=1     	---        Mistake:       	White=8     	Black=5      Inaccurate:     	White=2     	Black=2      OK:         	White=10    	Black=11     Strong:       	---       	Black=1} (33... f3 $142 34. h3 Kh7) 0-1

[Event "1st Festival Galdar 2024"]
[Site "?"]
[Date "2024.09.02"]
[Round "1.8"]
[White "Camacho Collados, Marcos"]
[Black "Castro Miguelez, Jose"]
[Result "1-0"]
[Annotator "TA"]
[ECO "A11"]
[WhiteElo "2460"]
[BlackElo "1785"]
[PlyCount "51"]
[EventDate "2024.09.02"]
[EventType "swiss"]
[SourceTitle "playchess.com"]
[Source "ChessBase"]
[SourceQuality "1"]
[TimeControl "5400+30"]

{[%evp 13,51,15,22,22,31,16,56,52,102,100,127,119,124,139,129,96,138,125,142,139,131,124,125,118,129,126,127,125,111,109,107,97,338,357,481,481,651,647,29985,810]} 1. Nf3 {[%emt 0:00:03]} d5 {[%emt 0:00:03]} 2. g3 {[%emt 0:00:04]} Nf6 {[%emt 0:00:15]} 3. Bg2 {[%emt 0:00:05]} g6 {[%emt 0:00:44]} 4. b3 {[%emt 0:00:09]} Bg7 {[%emt 0:00:07]} 5. Bb2 {[%emt 0:00:05]} O-O {[%emt 0:00:14]} 6. c4 {[%emt 0:00:26]} c6 {[%emt 0:00:17]} 7. O-O {[%emt 0:00:41]} Qb6 {[%emt 0:05:00]} 8. Qc1 {[%emt 0:03:20]} Rd8 {[%emt 0:04:31]} 9. d3 {[%emt 0:05:14]} dxc4 {[%emt 0:10:41]} 10. bxc4 {[%emt 0:00:45][%cal Bb3c4,Bc4d5][%mdl 32] White is slightly better.} c5 {[%emt 0:00:44]} ({Black should play} 10... Bg4 $14) 11. Nc3 $16 {[%emt 0:02:36]} Bd7 {[%emt 0:02:43]} 12. Rb1 {[%emt 0:04:10] Black must now prevent Nd5.} Qc7 {[%emt 0:01:57]} 13. Nd5 {[%emt 0:10:03]} Nxd5 {[%emt 0:00:26]} 14. Bxg7 {[%emt 0:02:15]} Kxg7 {[%emt 0:00:12]} 15. cxd5 {[%emt 0:00:03]} Bc8 {[%emt 0:02:56]} 16. Qc3+ {[%emt 0:05:02]} Kg8 {[%emt 0:01:04]} 17. Nd2 {[%emt 0:04:03]} Na6 {[%emt 0:02:51]} 18. Ne4 {[%emt 0:06:05][%cal Od5d6]} Rb8 {[%emt 0:05:37] [#]} (18... Rxd5 $2 {loses.} 19. Nf6+ exf6 20. Bxd5 $18) 19. d6 $1 {[%emt 0:00:54][%mdl 512] White has more active pieces.} Rxd6 {[%emt 0:00:19]} 20. Nxd6 {[%emt 0:00:15]} Qxd6 {[%emt 0:00:24]} 21. Rfd1 $36 {[%emt 0:04:39][%mdl 2048] White is really pushing.} e5 {[%emt 0:01:54]} 22. e3 {[%emt 0:00:22]} Nb4 $2 {[%emt 0:01:43] [#] Loses the game.} (22... Bg4 $16) 23. d4 $18 {[%emt 0:01:01]} exd4 {[%emt 0:01:14]} 24. exd4 {[%emt 0:00:12]} Na6 {[%emt 0:02:38]} 25. dxc5 {[%emt 0:00:10]} Qxc5 {[%emt 0:00:02]} 26. Rd8+ {[%emt 0:00:06] Weighted Error Value: White=0.05 (flawless) /Black=0.78.  Loses game:     	---       	Black=1      Mistake:       	---       	Black=1      Inaccurate:     	---       	Black=5      OK:         	White=8     	Black=6      Best:        	White=1     	Black=1} 1-0

[Event "1st Festival Galdar 2024"]
[Site "?"]
[Date "2024.09.02"]
[Round "1.9"]
[White "Cobo Mazorra, Alejandro"]
[Black "Lopez Martinez, Josep Manuel"]
[Result "0-1"]
[Annotator "TA"]
[ECO "A08"]
[WhiteElo "1773"]
[BlackElo "2448"]
[PlyCount "96"]
[EventDate "2024.09.02"]
[EventType "swiss"]
[SourceTitle "playchess.com"]
[Source "ChessBase"]
[SourceQuality "1"]
[TimeControl "5400+30"]

{[%evp 9,96,0,10,13,11,11,23,-22,-23,-49,-57,-78,-82,-96,-89,-90,-85,-95,-89,-201,-52,-45,-89,-99,-82,-95,-95,-93,-77,-145,-143,-138,-86,-96,-92,-93,-66,-85,-46,-87,-88,-71,-70,-82,-82,-88,0,0,0,0,0,0,13,12,120,32,102,83,118,0,0,-2,-6,-20,-5,-85,-85,-86,-94,-104,0,0,0,0,0,0,0,-291,-220,-481,-434,-395,-386,-404,-399,-393,-380,-362,-354]} 1. Nf3 {[%emt 0:00:30]} e6 {[%emt 0:02:29]} 2. d3 {[%emt 0:00:04]} d5 {[%emt 0:00:44]} 3. g3 {[%emt 0:00:22]} c5 {[%emt 0:01:22]} 4. Bg2 {[%emt 0:00:14]} Nc6 {[%emt 0:00:13]} 5. O-O {[%emt 0:01:02]} Bd6 {[%emt 0:00:27]} 6. Re1 {[%emt 0:00:46]} Nge7 {[%emt 1:28:15]} 7. e4 {[%emt 1:31:02]} O-O {[%emt 0:00:30]} 8. h4 {[%emt 0:00:30] White has an edge.} f6 {[%emt 0:00:30]} 9. Nc3 {[%emt 0:00:00]} d4 {[%emt 0:00:00]} 10. Ne2 {[%emt 0:01:00]} e5 {[%emt 0:01:00]} 11. h5 {[%emt 0:00:30]} Be6 {[%emt 0:00:30]} 12. Nh2 {[%emt 0:00:30]} Qe8 {[%emt 0:00:30]} 13. h6 {[%emt 0:00:00]} g5 {[%emt 0:00:30]} 14. f4 {[%emt 0:01:00]} (14. g4 $17) 14... Qh5 {[%emt 0:00:30]} (14... exf4 $19 15. gxf4 Qh5) 15. f5 $15 {[%emt 0:00:30]} Bf7 {[%emt 0:00:00]} 16. g4 {[%emt 0:00:00]} Qxh6 {[%emt 0:01:00]} 17. Ng3 {[%emt 0:01:00][%cal Og1f2]} c4 {[%emt 0:00:00] Black is much more active. The white rooks are passive.} 18. Nf3 Rfc8 {[%emt 0:00:00]} 19. Bd2 (19. Re2 $142) 19... cxd3 $17 {[%emt 0:01:30]} 20. cxd3 {[%emt 0:01:30]} Bb4 {[%emt 0:00:30]} (20... Nb4 $142 {...Nc2 is the strong threat.} 21. Bxb4 Bxb4) 21. Kf2 {[%emt 0:00:30]} Bxd2 {[%emt 0:00:30]} 22. Qxd2 {[%emt 0:00:30]} Qg7 {[%emt 0:00:30]} 23. Rh1 {[%emt 0:00:30]} Nd8 {[%emt 0:00:00]} 24. Nh5 Bxh5 {[%emt 0:01:00]} 25. Rxh5 {[%emt 0:01:00]} Nf7 {[%emt 0:00:00]} 26. Rah1 {[%emt 0:00:00]} h6 {[%emt 0:00:00]} 27. Ne1 {[%emt 0:00:00]} Rc5 {[%emt 0:00:00]} (27... a5 $17 28. Bf3 a4) 28. Bf3 $11 {[%emt 0:00:00][%cal Bg2f3,Bf3d1,Bd1b3,Bb3e6][%mdl 32]} Nc8 {[%emt 0:00:00]} 29. Bd1 {[%emt 0:00:00]} Ncd6 {[%emt 0:00:00]} 30. Bb3 {[%emt 0:00:00]} Kf8 {[%emt 0:00:00]} 31. Be6 {[%emt 0:00:00][%mdl 1024] White has compensation.} Ke7 {[%emt 0:00:00]} (31... Qh8 $11) 32. Qb4 (32. Nc2 $1 $16) 32... b6 {[%emt 0:00:00] [#]} (32... Rc6 $1 $14) 33. Qa4 $1 $16 {[%cal Oh5h6]} Rc7 {[%emt 0:00:00] [#] Black is weak on the light squares} 34. Qb4 (34. Bxf7 $1 $16 Nxf7 35. Nc2) 34... Rh8 {[%emt 0:00:00]} 35. Qb3 Nb7 {[%emt 0:00:00][%cal Bd6b7,Bb7c5,Bc5a4][%mdl 32]} 36. Bxf7 Nc5 {[%emt 0:06:00] Repels Qe6+. The board is on fire.} 37. Qc4 {[%emt 0:06:00]} (37. Qa3 $1 $11 {remains equal.} Kxf7 (37... Qxf7 38. Rxh6 Rxh6 39. Rxh6 $11) 38. b4) 37... Qxf7 $17 {[%emt 0:00:30]} 38. Qxf7+ {[%emt 0:00:00]} Kxf7 {[%emt 0:00:30]} 39. Rxh6 {[%emt 0:00:00]} Rg8 {[%emt 0:00:00]} (39... Rxh6 $17 40. Rxh6 Nd7 41. Rh7+ Ke8 42. Rh8+ Nf8) 40. R1h2 {[%emt 0:00:00]} Na4 {[%emt 0:00:00]} 41. Kf1 {[%emt 0:00:00]} Rc1 {[%emt 0:00:00]} 42. Rh7+ {[%emt 0:00:00]} Rg7 {[%emt 0:00:00]} 43. Rxg7+ $4 {[%emt 0:00:00][%mdl 8192]} (43. Rh8 $11 {and White stays safe.}) 43... Kxg7 $11 {[%emt 0:00:00] KRN-KRN} 44. b3 $2 {[%emt 0:00:00]} (44. Rd2) 44... Nc3 $19 {[%emt 0:00:00]} 45. Rb2 {[%emt 0:00:00]} Nd1 {[%emt 0:00:00] Black is winning.} 46. Re2 {[%emt 0:00:00]} Ne3+ {[%emt 0:04:00]} 47. Kf2 {[%emt 0:05:00]} Nxg4+ {[%emt 0:00:00]} 48. Kg3 {[%emt 0:00:00]} Ne3 {[%emt 0:01:00] Weighted Error Value: White=0.35/Black=0.22 (precise) .  Loses game:     	White=1     	---        Mistake:       	White=6     	Black=6      Inaccurate:     	White=3     	Black=2      OK:         	White=13    	Black=20     Best:        	---       	Black=5      Strong:       	White=1     	---} 0-1

[Event "1st Festival Galdar 2024"]
[Site "?"]
[Date "2024.09.02"]
[Round "1.10"]
[White "Movsziszian, Karen"]
[Black "Vargas Tinoco, Martin Alonso"]
[Result "1-0"]
[Annotator "TA"]
[ECO "A07"]
[WhiteElo "2444"]
[BlackElo "1769"]
[PlyCount "63"]
[EventDate "2024.09.02"]
[EventType "swiss"]
[SourceTitle "playchess.com"]
[Source "ChessBase"]
[SourceQuality "1"]
[TimeControl "5400+30"]

{[%evp 9,63,3,1,0,4,0,0,-4,69,52,34,4,30,12,82,78,70,81,77,85,152,105,117,110,168,169,160,154,325,322,319,319,438,425,498,493,498,493,524,406,396,346,537,530,519,516,596,588,975,907,1373,1303,1558,1037,1350,675]} 1. g3 {[%emt 0:00:46]} d5 {[%emt 0:00:26]} 2. Bg2 {[%emt 0:00:05]} e5 {[%emt 0:01:09]} 3. d3 {[%emt 0:00:03]} Nf6 {[%emt 0:00:51]} 4. Nf3 {[%emt 0:00:19]} Nbd7 {[%emt 0:02:25]} 5. O-O {[%emt 0:00:10]} Be7 {[%emt 0:02:03]} 6. Nbd2 {[%emt 0:03:46][%cal Bb1d2,Bd2c4,Bc4e3,Be3d5][%mdl 32]} O-O {[%emt 0:03:36]} 7. e4 {[%emt 0:00:03]} dxe4 {[%emt 0:01:55]} 8. dxe4 {[%emt 0:00:03] The position is equal.} c5 {[%emt 0:01:43]} (8... Qe8 $11) 9. Re1 {[%emt 0:01:00]} Qc7 {[%emt 0:02:56]} 10. Nc4 {[%emt 0:00:21]} Rd8 {[%emt 0:05:06]} 11. Qe2 {[%emt 0:00:47]} Ne8 {[%emt 0:09:30]} (11... b5 $11 {remains equal.} 12. Ne3 b4) 12. b3 {[%emt 0:05:58]} f6 {[%emt 0:00:40]} 13. Ne3 {[%emt 0:00:20]} Nf8 {[%emt 0:00:34]} 14. Nd5 {[%emt 0:00:26]} Qd6 {[%emt 0:05:40]} (14... Qd7 $142) 15. Nd2 {[%emt 0:02:45]} ({White should try} 15. Nh4) 15... Be6 {[%emt 0:05:16]} 16. Bb2 {[%emt 0:01:56]} Nc7 {[%emt 0:13:01]} (16... Qd7 $16 {might work better.}) 17. Nc4 $36 {[%emt 0:00:07][%mdl 2048] White is on the roll.} Qd7 {[%emt 0:00:33]} 18. Rad1 {[%emt 0:01:20][%cal Od5f6] [#] Nxf6+! would now be deadly. White has more active pieces.} Nxd5 {[%emt 0:04:09] Black cannot hold the game after this.} (18... Bxd5 $16 {was called for.} 19. exd5 Bd6) 19. exd5 {[%emt 0:00:04]} Bg4 {[%emt 0:04:33]} 20. f3 {[%emt 0:00:06]} b5 {[%emt 0:01:52]} 21. d6 {[%emt 0:00:42]} ({Don't do} 21. fxg4 bxc4 22. d6 (22. Qxc4 Bd6 $18) 22... Bxd6 23. Qxc4+ Kh8 24. Bxa8 Rxa8 $18) 21... Be6 {[%emt 0:04:21]} 22. dxe7 {[%emt 0:00:11]} Qxe7 {[%emt 0:00:09]} 23. Ne3 {[%emt 0:00:28][%cal Bc4e3,Be3d5,Bd5e7,Be7c6][%mdl 32]} Rab8 {[%emt 0:02:22]} 24. c4 {[%emt 0:00:58]} bxc4 {[%emt 0:00:28]} 25. bxc4 {[%emt 0:00:54]} Qb7 {[%emt 0:06:40]} (25... Kh8 $142 26. Nd5 Qf7) 26. Rxd8 {[%emt 0:03:02] White is clearly winning.} Rxd8 {[%emt 0:00:07]} 27. f4 {[%emt 0:00:18]} Qb4 {[%emt 0:01:45]} 28. Nd5 {[%emt 0:00:27]} ({Not} 28. fxe5 Rd2 $16) 28... Qa5 {[%emt 0:07:01]} 29. fxe5 {[%emt 0:00:10]} Bg4 {[%emt 0:03:47]} 30. Qf2 {[%emt 0:00:50]} fxe5 {[%emt 0:05:47]} 31. Ne7+ {[%emt 0:00:33]} Kh8 {[%emt 0:00:22]} 32. Nc6 {[%emt 0:00:11] Weighted Error Value: White=0.16 (very precise) /Black=0.56.  Loses game:     	---       	Black=1      Mistake:       	White=1     	Black=5      Inaccurate:     	White=1     	Black=4      OK:         	White=8     	Black=6      Best:        	White=3     	Black=1} 1-0

[Event "1st Festival Galdar 2024"]
[Site "?"]
[Date "2024.09.02"]
[Round "1.11"]
[White "Quevedo Olivares, Carlos Tomas"]
[Black "Rakotomaharo, Fy Antenaina"]
[Result "0-1"]
[Annotator "RC"]
[ECO "B22"]
[WhiteElo "1766"]
[BlackElo "2440"]
[PlyCount "64"]
[EventDate "2024.09.02"]
[EventType "swiss"]
[SourceTitle "playchess.com"]
[Source "ChessBase"]
[SourceQuality "1"]
[TimeControl "5400+30"]

1. e4 {[%emt 0:00:05]} c5 {[%emt 0:00:48]} 2. c3 {[%emt 0:00:06]} Nf6 {[%emt 0:00:39]} 3. e5 {[%emt 0:00:08]} Nd5 {[%emt 0:00:05]} 4. d4 {[%emt 0:00:06]} cxd4 {[%emt 0:00:13]} 5. Nf3 {[%emt 0:00:08]} e6 {[%emt 0:00:17]} 6. cxd4 {[%emt 0:00:13]} d6 {[%emt 0:00:15]} 7. Bc4 {[%emt 0:03:58]} Be7 {[%emt 0:00:20]} 8. O-O {[%emt 0:00:18]} O-O {[%emt 0:00:33]} 9. Nbd2 {[%emt 0:02:00]} Qc7 {[%emt 0:04:10]} 10. Bb3 {[%emt 0:10:46]} Nc6 {[%emt 0:03:08]} 11. Re1 {[%emt 0:04:48]} Rd8 {[%emt 0:05:12]} 12. exd6 {[%emt 1:13:54]} Bxd6 {[%emt 0:01:23]} 13. Ne4 {[%emt 0:00:00]} Be7 {[%emt 0:04:30]} 14. Bg5 {[%emt 0:00:00]} Qb6 {[%emt 0:03:56]} 15. Nc5 {[%emt 0:00:00]} h6 {[%emt 0:16:55]} 16. Bxe7 {[%emt 0:00:00]} Ndxe7 {[%emt 0:00:12]} 17. Rc1 {[%emt 0:00:00]} Nf5 {[%emt 0:02:18]} 18. Na4 {[%emt 0:00:00]} Qb4 {[%emt 0:01:09]} 19. a3 {[%emt 0:00:00]} Qd6 {[%emt 0:01:52]} 20. d5 {[%emt 0:00:00]} exd5 {[%emt 0:00:23]} 21. Nc3 {[%emt 0:00:00]} d4 {[%emt 0:04:05]} 22. Ne4 {[%emt 0:00:00]} Qf8 {[%emt 0:04:30]} 23. Rxc6 {[%emt 0:00:00]} bxc6 {[%emt 0:01:07]} 24. Ne5 {[%emt 0:00:00]} Be6 {[%emt 0:00:49]} 25. Bxe6 {[%emt 0:00:00]} fxe6 {[%emt 0:00:06]} 26. Nxc6 {[%emt 0:00:00]} Rdc8 {[%emt 0:01:58]} 27. Ne5 {[%emt 0:00:00]} Rc7 {[%emt 0:00:17]} 28. Qa4 {[%emt 0:00:00]} Rac8 {[%emt 0:01:48]} 29. h3 {[%emt 0:00:00]} Rc1 {[%emt 0:02:19]} 30. Rxc1 {[%emt 0:00:00]} Rxc1+ {[%emt 0:00:15]} 31. Kh2 {[%emt 0:00:00]} Nd6 {[%emt 0:00:59]} 32. Nxd6 {[%emt 0:00:00]} Qf4+ {[%emt 0:00:14]} 0-1

[Event "1st Festival Galdar 2024"]
[Site "?"]
[Date "2024.09.02"]
[Round "1.12"]
[White "Koelle, Tobias"]
[Black "Basualdo De Ornelas, Jorge"]
[Result "1-0"]
[Annotator "RC"]
[ECO "D37"]
[WhiteElo "2433"]
[BlackElo "1763"]
[PlyCount "85"]
[EventDate "2024.09.02"]
[EventType "swiss"]
[SourceTitle "playchess.com"]
[Source "ChessBase"]
[SourceQuality "1"]
[TimeControl "5400+30"]

1. d4 {[%emt 0:00:04]} d5 {[%emt 0:00:01]} 2. c4 {[%emt 0:00:11]} e6 {[%emt 0:00:03]} 3. Nf3 {[%emt 0:00:17]} Nf6 {[%emt 0:00:05]} 4. Nc3 {[%emt 0:00:08]} a6 {[%emt 0:00:19]} 5. cxd5 {[%emt 0:00:14]} exd5 {[%emt 0:00:08]} 6. Bg5 {[%emt 0:00:07]} Be6 {[%emt 0:00:09]} 7. e3 {[%emt 0:00:12]} Nbd7 {[%emt 0:00:23]} 8. Bd3 {[%emt 0:00:10]} h6 {[%emt 0:00:25]} 9. Bh4 {[%emt 0:00:22]} Bd6 {[%emt 0:00:20]} 10. O-O {[%emt 0:02:32]} g5 {[%emt 0:00:26]} 11. Bg3 {[%emt 0:00:23]} Bxg3 {[%emt 0:00:46]} 12. fxg3 {[%emt 0:04:28]} Qe7 {[%emt 0:00:04]} 13. Rc1 {[%emt 0:02:35]} O-O-O {[%emt 0:01:40]} 14. Qc2 {[%emt 0:01:54]} Qd6 {[%emt 0:09:36]} 15. Na4 {[%emt 0:03:01]} Kb8 {[%emt 0:05:29]} 16. Nc5 {[%emt 0:00:31]} Nxc5 {[%emt 0:00:09]} 17. dxc5 {[%emt 0:00:27]} Qe7 {[%emt 0:01:14]} 18. c6 {[%emt 0:01:51]} Bc8 {[%emt 0:00:04]} 19. cxb7 {[%emt 0:04:16]} Bxb7 {[%emt 0:00:42]} 20. Rfe1 {[%emt 0:00:46]} Ne8 {[%emt 0:18:57]} 21. Nd4 {[%emt 0:00:30]} Qd6 {[%emt 0:08:50]} 22. b4 {[%emt 0:00:14]} h5 {[%emt 0:01:58]} 23. Qa4 {[%emt 0:04:04]} Rh6 {[%emt 0:08:27]} 24. Nf5 {[%emt 0:01:35]} Qg6 {[%emt 0:00:14]} 25. Nxh6 {[%emt 0:00:37]} Qxh6 {[%emt 0:00:46]} 26. b5 {[%emt 0:00:17]} Ka7 {[%emt 0:05:23]} 27. bxa6 {[%emt 0:00:25]} Ba8 {[%emt 0:00:26]} 28. Rb1 {[%emt 0:00:07]} d4 {[%emt 0:06:11]} 29. Rb7+ {[%emt 0:01:35]} Bxb7 {[%emt 0:00:04]} 30. axb7+ {[%emt 0:00:07]} Kxb7 {[%emt 0:00:02]} 31. Rb1+ {[%emt 0:00:14]} Qb6 {[%emt 0:00:29]} 32. Be4+ {[%emt 0:00:21]} Kc8 {[%emt 0:01:23]} 33. Rxb6 {[%emt 0:00:24]} cxb6 {[%emt 0:00:03]} 34. Qc6+ {[%emt 0:00:41]} Nc7 {[%emt 0:00:11]} 35. Bf5+ {[%emt 0:00:15]} Kb8 {[%emt 0:00:16]} 36. Qxb6+ {[%emt 0:00:17]} Ka8 {[%emt 0:00:03]} 37. Qxc7 {[%emt 0:00:35]} Re8 {[%emt 0:00:14]} 38. Qc6+ {[%emt 0:00:26]} Kb8 {[%emt 0:00:07]} 39. Qxe8+ {[%emt 0:00:14]} Ka7 {[%emt 0:00:02]} 40. Qxf7+ {[%emt 0:00:15]} Kb8 {[%emt 0:00:04]} 41. exd4 {[%emt 0:00:15]} Ka8 {[%emt 0:00:05]} 42. Bc8 {[%emt 0:00:14]} Kb8 {[%emt 0:00:05]} 43. Qb7# {[%emt 0:00:13]} 1-0

[Event "1st Festival Galdar 2024"]
[Site "?"]
[Date "2024.09.02"]
[Round "1.13"]
[White "Gallardo Palenzuela, Jose Luis"]
[Black "Yankelevich, Lev"]
[Result "0-1"]
[Annotator "TA"]
[ECO "E62"]
[WhiteElo "1762"]
[BlackElo "2420"]
[PlyCount "66"]
[EventDate "2024.09.02"]
[EventType "swiss"]
[SourceTitle "playchess.com"]
[Source "ChessBase"]
[SourceQuality "1"]
[TimeControl "5400+30"]

{[%evp 12,66,22,39,33,39,33,6,0,20,14,6,33,26,19,-34,-17,-37,-48,-167,-130,-354,-106,-81,-95,-93,-65,-115,-121,-120,-118,-120,-115,-116,-113,-127,-110,-124,-121,-141,-124,-161,-135,-145,-141,-212,-209,-306,-302,-482,-469,-836,-830,-829,-829,-773,-762]} 1. d4 {[%emt 0:00:05]} Nf6 {[%emt 0:00:11]} 2. Nf3 {[%emt 0:00:35]} g6 {[%emt 0:00:18]} 3. g3 {[%emt 0:00:31]} Bg7 {[%emt 0:00:45]} 4. Bg2 {[%emt 0:00:09]} O-O {[%emt 0:00:07]} 5. c4 {[%emt 0:01:28]} d6 {[%emt 0:00:07]} 6. Nc3 {[%emt 0:00:20]} c6 {[%emt 0:00:33]} 7. e4 {[%emt 0:01:44]} Be6 {[%emt 0:03:19]} 8. Qe2 {[%emt 0:05:51]} Bg4 {[%emt 0:00:43]} 9. h3 {[%emt 0:01:24]} Bxf3 {[%emt 0:00:05] The position is equal.} 10. Bxf3 {[%emt 0:01:38]} Nfd7 {[%emt 0:08:11]} 11. Be3 {[%emt 0:01:13]} Qb6 {[%emt 0:00:28]} 12. Rd1 {[%emt 0:05:12]} Qb4 {[%emt 0:01:24]} 13. Qd3 {[%emt 0:09:38]} (13. Qc2 $11) 13... c5 {[%emt 0:14:35]} 14. O-O {[%emt 0:12:25] Strongly threatening Nd5.} Nc6 {[%emt 0:04:58]} 15. Nb5 {[%emt 0:12:15]} (15. Nd5 $15 Qa5 (15... Qxb2 $2 16. Rd2 $18) 16. b4 cxb4 17. Bg2) 15... cxd4 {[%emt 0:02:25]} 16. a3 $2 {[%emt 0:07:59] [#]} (16. Nxd4 $17 Bxd4 (16... Qxb2 17. Nxc6 bxc6 18. Rd2 $17) 17. Bxd4) 16... Nde5 $2 {[%emt 0:07:52]} 17. axb4 $17 {[%emt 0:01:50]} Nxd3 {[%emt 0:01:17] Excellent horsemanship.} 18. Nxd4 {[%emt 0:07:22]} Ndxb4 {[%emt 0:04:27] Black is more active.} 19. Be2 {[%emt 0:07:17]} (19. Nxc6 $15 Nxc6 (19... bxc6 20. c5 $17) 20. b3) 19... Nxd4 {[%emt 0:01:33]} 20. Bxd4 {[%emt 0:00:03]} Bxd4 {[%emt 0:00:06]} 21. Rxd4 {[%emt 0:00:09]} Rfc8 {[%emt 0:00:08]} 22. f4 {[%emt 0:02:56]} Rc5 {[%emt 0:00:20]} 23. Rf3 {[%emt 0:01:40]} Rac8 {[%emt 0:00:31]} 24. Kf2 {[%emt 0:05:01]} R8c6 {[%emt 0:01:00]} 25. Rb3 {[%emt 0:02:26]} Rb6 {[%emt 0:01:09]} 26. Rd1 {[%emt 0:02:37] [#]} Rcc6 $1 {[%emt 0:00:53]} 27. Ra1 {[%emt 0:01:09]} Na6 {[%emt 0:00:34]} 28. Rxb6 {[%emt 0:00:18]} (28. Rb5 $17) 28... Rxb6 {[%emt 0:00:05] KRB-KRN} ({But not} 28... axb6 29. Ke3 $15) 29. Rb1 {[%emt 0:02:10]} (29. Bf3 $142) 29... Nc5 $19 {[%emt 0:00:19]} 30. Ke3 {[%emt 0:00:23]} (30. e5 $142) 30... Rb3+ {[%emt 0:00:07] Black is clearly winning.} 31. Kd4 {[%emt 0:04:24]} (31. Kd2 $142) 31... Ne6+ {[%emt 0:00:50]} 32. Kd5 {[%emt 0:00:02]} Rxg3 {[%emt 0:00:05]} 33. Rf1 {[%emt 0:04:46]} Re3 {[%emt 0:47:35] Weighted Error Value: White=0.54/Black=0.20 (precise) .  Loses game:     	White=1     	---        Missed win:     	---       	Black=1      Mistake:       	White=7     	---        Inaccurate:     	White=1     	Black=2      OK:         	White=4     	Black=11     Best:        	White=2     	---} 0-1